bitfinex/quotes_BTCUSD_20260315
["timestamp","ask_amount","ask_price","bid_price","bid_amount"]
[1773615052635,0.0014,72612.0,72590.0,0.17063057]
[1773615052901,0.12469705,72612.0,72582.0,0.0014]
[1773615053037,0.06885629,72618.0,72582.0,0.0014]
[1773615053038,1.8026123,72635.0,72590.0,0.17077781]
[1773615053239,1.8026123,72635.0,72582.0,0.0014]
[1773615053240,5e-05,72640.0,72603.0,4.810806]
[1773615053429,0.0004956,72651.0,72640.0,0.17077781]
[1773615053635,0.0014,72673.0,72650.0,0.17077781]
[1773615053879,0.0014,72673.0,72645.0,0.0014]
[1773615053880,0.06922122,72670.0,72645.0,0.0014]
[1773615054184,0.0014,72669.0,72640.0,0.17077781]
[1773615054413,0.0014,72669.0,72646.0,0.0014]
[1773615054616,0.0014,72669.0,72645.0,5e-05]
[1773615054617,0.06880607,72668.0,72645.0,5e-05]
[1773615054771,0.06880607,72668.0,72645.0,0.06887706]
[1773615054974,0.0014,72667.0,72643.0,0.06882968]
[1773615055341,0.12826094,72666.0,72640.0,5e-05]
[1773615055541,0.06880607,72668.0,72640.0,0.06883197]
[1773615055791,0.0014,72667.0,72640.0,0.06883197]
[1773615056174,0.12826094,72666.0,72639.0,0.06883259]
[1773615056569,0.06880891,72665.0,72638.0,0.06883354]
[1773615056770,0.12826094,72664.0,72635.0,5e-05]
[1773615056989,0.0014,72663.0,72635.0,0.06888672]
[1773615057192,0.06880891,72665.0,72636.0,0.13448587]
[1773615057390,0.0014,72662.0,72636.0,0.13448587]
[1773615057876,0.0014,72662.0,72637.0,0.0014]
[1773615058078,0.00014723,72661.0,72637.0,0.0014]
[1773615058594,0.06895993,72661.0,72638.0,0.06883449]
[1773615060005,0.0014,72660.0,72638.0,0.06883449]
[1773615060367,0.0014,72660.0,72637.0,0.0688349]
[1773615060526,0.06895993,72661.0,72640.0,0.30526368]
[1773615060875,0.06895993,72661.0,72636.0,0.06883638]
[1773615061050,0.06895993,72661.0,72638.0,0.0014]
[1773615061394,0.0014,72660.0,72638.0,0.0014]
[1773615061634,0.00014723,72661.0,72638.0,0.0014]
[1773615061843,0.00010723,72661.0,72641.0,0.13448587]
[1773615062875,0.00010723,72661.0,72642.0,0.0688307]
[1773615064440,0.00010723,72661.0,72643.0,0.0014]
[1773615064638,0.00010723,72661.0,72643.0,0.13588587]
[1773615064944,0.0014,72660.0,72643.0,0.13588587]
[1773615065136,0.06881459,72659.0,72644.0,0.0688288]
[1773615065336,0.0014,72660.0,72644.0,0.0688288]
[1773615065537,0.06880891,72665.0,72644.0,0.0688288]
[1773615065975,0.06880891,72665.0,72644.0,0.0702288]
[1773615066369,0.06880891,72665.0,72644.0,0.0014]
[1773615066610,0.12826094,72664.0,72639.0,0.06883295]
[1773615066936,0.06880891,72665.0,72641.0,0.13448587]
[1773615067145,0.12826094,72664.0,72637.0,0.06883354]
[1773615067358,0.12826094,72662.0,72630.0,0.06889118]
[1773615067580,0.12826094,72660.0,72630.0,0.06889118]
[1773615067829,0.11381181,72659.0,72631.0,0.0014]
[1773615068039,0.12826094,72658.0,72629.0,0.06884207]
[1773615068251,0.12826094,72658.0,72632.0,0.0014]
[1773615068684,0.12826094,72658.0,72629.0,0.06884207]
[1773615068884,0.12826094,72658.0,72628.0,0.06884207]
[1773615068885,0.12826094,72658.0,72624.0,0.08694576]
[1773615069051,0.0002,72661.0,72631.0,0.13448587]
[1773615069227,0.0002,72661.0,72633.0,0.13448587]
[1773615069228,0.06881365,72660.0,72633.0,0.13448587]
[1773615069827,0.0014,72659.0,72633.0,0.13448587]
[1773615070409,0.11241181,72658.0,72633.0,0.13448587]
[1773615070630,0.12826094,72657.0,72634.0,0.0014]
[1773615070835,0.12826094,72657.0,72630.0,0.0014]
[1773615070836,0.0014,72656.0,72630.0,0.0014]
[1773615071037,0.0014,72655.0,72630.0,0.30666368]
[1773615071269,0.0014,72655.0,72626.0,0.06884586]
[1773615071270,0.12826094,72654.0,72626.0,0.06884586]
[1773615071443,0.06882028,72653.0,72631.0,0.06884112]
[1773615071754,0.12826094,72652.0,72626.0,0.06884586]
[1773615071955,0.12826094,72652.0,72625.0,0.06889645]
[1773615072161,0.12826094,72652.0,72625.0,5e-05]
[1773615072827,0.12826094,72652.0,72624.0,0.01809881]
[1773615073048,0.12826094,72650.0,72624.0,0.01809881]
[1773615073486,0.12826094,72648.0,72615.0,5e-05]
[1773615073695,0.12826094,72639.0,72610.0,5e-05]
[1773615073913,0.0014,72638.0,72604.0,0.0688664]
[1773615074132,0.12966094,72637.0,72604.0,0.06886616]
[1773615074353,0.0014,72636.0,72605.0,0.06891496]
[1773615074627,0.12966094,72635.0,72601.0,0.07283514]
[1773615074838,0.12966094,72635.0,72600.0,0.06891986]
[1773615074839,0.11241181,72629.0,72600.0,0.23969808]
[1773615075057,0.0014,72628.0,72600.0,0.06892027]
[1773615075324,0.12826094,72627.0,72600.0,0.06887027]
[1773615075544,0.12826094,72625.0,72596.0,5e-05]
[1773615076250,0.12826094,72619.0,72596.0,5e-05]
[1773615076382,0.0014,72618.0,72596.0,5e-05]
[1773615076569,0.12826094,72617.0,72596.0,5e-05]
[1773615076772,0.0014,72616.0,72596.0,5e-05]
[1773615077114,0.12826094,72615.0,72592.0,0.00022]
[1773615077669,0.07025724,72614.0,72592.0,0.00022]
[1773615077999,0.06885724,72614.0,72592.0,0.0690977]
[1773615078225,0.0014,72613.0,72592.0,0.0690977]
[1773615078838,0.0014,72613.0,72592.0,0.06945304]
[1773615079043,0.06985655,72615.0,72593.0,0.13448587]
[1773615079646,0.06985655,72615.0,72594.0,0.20336208]
[1773615079879,0.06885655,72615.0,72595.0,0.0014]
[1773615080152,0.06885655,72615.0,72600.0,0.17077781]
[1773615080359,0.06885655,72615.0,72599.0,0.13448587]
[1773615081475,0.06885119,72621.0,72603.0,0.06886767]
[1773615081646,0.06885119,72621.0,72603.0,0.20335354]
[1773615081829,0.06885119,72621.0,72604.0,0.0014]
[1773615082977,0.06885119,72621.0,72605.0,0.0014]
[1773615083196,0.06885119,72621.0,72601.0,0.15414189]
[1773615083197,0.06885119,72621.0,72603.0,0.06886767]
[1773615083522,0.07025119,72621.0,72604.0,0.0014]
[1773615083690,0.07025119,72621.0,72605.0,0.06886578]
[1773615085647,0.07025119,72621.0,72605.0,0.0014]
[1773615086051,0.12707363,72620.0,72605.0,0.0014]
[1773615086249,0.12707363,72620.0,72600.0,5e-05]
[1773615086833,0.12707363,72620.0,72596.0,0.00022]
[1773615087380,0.07025119,72621.0,72590.0,1e-08]
[1773615087517,0.12847363,72620.0,72586.0,0.03900851]
[1773615087713,0.12707363,72618.0,72587.0,0.0014]
[1773615088341,0.0014,72617.0,72590.0,0.17077781]
[1773615088556,0.0014,72616.0,72591.0,0.13117984]
[1773615088754,0.0702525,72619.0,72591.0,0.13117984]
[1773615089114,0.0688525,72619.0,72591.0,0.13117984]
[1773615089387,0.0688525,72619.0,72590.0,0.17077781]
[1773615089388,0.0688525,72619.0,72592.0,0.13257984]
[1773615089611,0.06885155,72620.0,72602.0,0.08514981]
[1773615089819,0.0001065,72621.0,72603.0,0.06886767]
[1773615090085,0.0001065,72621.0,72604.0,0.0014]
[1773615091670,0.0001065,72621.0,72605.0,0.06886578]
[1773615091869,0.12718013,72621.0,72604.0,0.07026641]
[1773615092072,0.0001065,72621.0,72604.0,0.07026641]
[1773615092270,0.0001065,72621.0,72604.0,0.06886641]
[1773615092475,0.0001065,72621.0,72605.0,0.0014]
[1773615092681,0.12707363,72620.0,72582.0,0.0004956]
[1773615093025,0.12707363,72620.0,72588.0,0.0014]
[1773615093152,0.12707363,72619.0,72585.0,0.06910455]
[1773615093585,0.12707363,72619.0,72593.0,0.00022]
[1773615093900,0.12707363,72617.0,72593.0,0.00022]
[1773615094671,0.06885345,72618.0,72593.0,0.06909652]
[1773615094672,0.0014,72616.0,72593.0,0.06909652]
[1773615094871,0.19592708,72618.0,72594.0,0.0014]
[1773615095092,0.06885345,72618.0,72594.0,0.0014]
[1773615095293,0.12847363,72617.0,72595.0,0.0014]
[1773615095700,0.12947363,72617.0,72593.0,0.06909652]
[1773615096029,0.06885534,72616.0,72593.0,0.06909652]
[1773615096325,0.07025534,72616.0,72593.0,0.06909652]
[1773615096735,0.06885345,72618.0,72593.0,0.06909652]
[1773615097030,0.06885345,72620.0,72601.0,0.07761544]
[1773615097235,0.06885345,72620.0,72602.0,0.0014]
[1773615098225,0.06885345,72620.0,72603.0,0.06886767]
[1773615099331,0.06885345,72620.0,72604.0,0.0014]
[1773615099529,0.12707363,72619.0,72598.0,0.0014]
[1773615099727,0.0014,72618.0,72598.0,0.0014]
[1773615100177,0.0014,72618.0,72599.0,0.0014]
[1773615100753,0.0688544,72617.0,72595.0,0.06887487]
[1773615100958,0.0688544,72617.0,72596.0,0.0014]
[1773615101817,0.0688544,72617.0,72600.0,0.17077781]
[1773615102832,0.0688544,72618.0,72601.0,0.06886957]
[1773615103289,0.0688525,72619.0,72608.0,0.17077781]
[1773615103490,0.0688525,72619.0,72608.0,0.0014]
[1773615104517,0.12707363,72618.0,72605.0,0.0014]
[1773615104726,0.06915741,72621.0,72608.0,0.17077781]
[1773615104899,0.19592613,72620.0,72606.0,0.07026429]
[1773615105694,0.0688525,72620.0,72610.0,0.17077781]
[1773615105904,0.0688525,72620.0,72606.0,0.06896429]
[1773615106726,0.0688525,72620.0,72606.0,0.06886429]
[1773615106945,0.0688525,72620.0,72608.0,0.06886293]
[1773615107095,0.12707363,72619.0,72608.0,0.0014]
[1773615107294,0.12707363,72619.0,72600.0,0.06887033]
[1773615107746,0.12707363,72619.0,72598.0,0.0014]
[1773615107885,0.0014,72618.0,72598.0,0.0702721]
[1773615108087,0.12707363,72617.0,72598.0,0.0702721]
[1773615108535,0.12707363,72617.0,72598.0,0.0014]
[1773615108741,0.12707363,72617.0,72600.0,0.17077781]
[1773615108938,0.06915743,72621.0,72601.0,0.13117984]
[1773615109141,0.06915743,72621.0,72600.0,0.17061664]
[1773615110401,0.06915743,72621.0,72598.0,0.17822478]
[1773615110806,0.06885093,72621.0,72598.0,0.07027232]
[1773615111435,0.06885093,72621.0,72598.0,0.06887232]
[1773615111635,0.06556393,72622.0,72600.0,0.17061664]
[1773615111840,0.0002,72621.0,72601.0,0.13117984]
[1773615113192,0.0002,72628.0,72601.0,0.13117984]
[1773615113193,9.4e-05,72651.0,72611.0,0.17061664]
[1773615113402,0.10992655,72656.0,72611.0,0.17061664]
[1773615113403,5e-05,72656.0,72636.0,0.825204]
[1773615113606,5e-05,72656.0,72638.0,0.751578]
[1773615113806,0.07020767,72667.0,72637.0,0.0014]
[1773615113807,0.06879566,72679.0,72660.0,0.17061664]
[1773615114004,0.12223663,72678.0,72661.0,0.0014]
[1773615114221,0.12223663,72678.0,72662.0,0.0014]
[1773615114412,0.12223663,72678.0,72654.0,0.0014]
[1773615114613,0.0014,72677.0,72654.0,0.0014]
[1773615114788,0.12223663,72676.0,72655.0,0.0014]
[1773615114988,0.12223663,72676.0,72656.0,0.0014]
[1773615115341,0.06879944,72675.0,72657.0,0.0014]
[1773615115507,0.06879944,72675.0,72658.0,0.0014]
[1773615115673,0.06879944,72675.0,72650.0,0.17066664]
[1773615115879,0.06879944,72675.0,72651.0,0.0014]
[1773615116186,0.12223663,72674.0,72650.0,5e-05]
[1773615116390,0.12223663,72674.0,72651.0,0.0014]
[1773615117182,0.06880134,72673.0,72652.0,0.06882122]
[1773615117381,0.06880134,72673.0,72656.0,0.001]
[1773615117630,0.06880134,72673.0,72652.0,0.06882122]
[1773615118032,0.06880134,72673.0,72653.0,0.0014]
[1773615118033,0.12223663,72672.0,72653.0,0.0014]
[1773615118418,0.12223663,72672.0,72640.0,5e-05]
[1773615118586,0.12223663,72672.0,72643.0,0.06882937]
[1773615118792,0.12223663,72672.0,72645.0,0.06887767]
[1773615118984,0.12223663,72670.0,72640.0,5e-05]
[1773615119185,0.06880607,72668.0,72640.0,5e-05]
[1773615119515,0.12223663,72667.0,72640.0,5e-05]
[1773615119834,0.0014,72666.0,72640.0,0.17061664]
[1773615120034,0.12223663,72665.0,72641.0,0.0014]
[1773615121347,0.12223663,72663.0,72636.0,0.068836]
[1773615121599,0.12223663,72663.0,72641.0,0.0014]
[1773615122016,0.0014,72662.0,72641.0,0.0014]
[1773615122222,0.12223663,72661.0,72641.0,0.0014]
[1773615122446,0.12363663,72661.0,72641.0,0.0014]
[1773615122644,0.0014,72660.0,72641.0,0.0014]
[1773615122918,0.06880986,72664.0,72641.0,0.0014]
[1773615123567,0.12363663,72663.0,72635.0,5e-05]
[1773615123915,0.12363663,72663.0,72633.0,0.06868891]
[1773615124437,0.12223663,72663.0,72641.0,0.001]
[1773615124595,0.12223663,72661.0,72633.0,0.06868891]
[1773615124991,0.12223663,72661.0,72633.0,0.06968891]
[1773615125198,0.12223663,72658.0,72633.0,0.06868891]
[1773615125404,0.12223663,72656.0,72632.0,0.06883923]
[1773615125619,0.12223663,72656.0,72631.0,0.0014]
[1773615126011,0.12223663,72656.0,72631.0,0.07024075]
[1773615126569,0.12223663,72654.0,72631.0,0.07024075]
[1773615126940,0.0014,72653.0,72631.0,0.07024075]
[1773615127146,0.12223663,72652.0,72631.0,0.07024075]
[1773615127793,0.12223663,72650.0,72631.0,0.07024075]
[1773615127953,0.12223663,72650.0,72631.0,0.06884075]
[1773615128163,0.12223663,72650.0,72632.0,0.0014]
[1773615128870,0.0014,72649.0,72632.0,0.0014]
[1773615129073,0.0014,72650.0,72632.0,0.0014]
[1773615129275,0.06882217,72651.0,72632.0,0.0014]
[1773615129496,0.12223663,72649.0,72632.0,0.0014]
[1773615130516,0.06882501,72648.0,72633.0,0.06883923]
[1773615130877,0.06882501,72648.0,72634.0,0.0014]
[1773615131078,0.12223663,72647.0,72634.0,0.0014]
[1773615131647,0.10971556,72685.0,72635.0,1.869457]
[1773615131858,0.06900057,72674.0,72659.0,0.17061664]
[1773615132059,0.06880258,72672.0,72659.0,0.00010651]
[1773615132261,0.06900368,72671.0,72660.0,0.17061664]
[1773615132471,0.06900368,72671.0,72659.0,0.00010651]
[1773615132472,0.19124031,72671.0,72659.0,0.00010651]
[1773615132641,0.19124031,72671.0,72650.0,0.23948881]
[1773615132642,0.12223663,72670.0,72650.0,0.06887217]
[1773615132824,0.12234302,72670.0,72650.0,0.06887217]
[1773615133543,0.12234302,72670.0,72650.0,0.06882217]
[1773615134568,0.06880513,72669.0,72648.0,0.06882312]
[1773615134734,0.12223663,72668.0,72648.0,0.06882312]
[1773615135115,0.0014,72667.0,72648.0,0.06882312]
[1773615135705,0.0014,72666.0,72647.0,0.06882312]
[1773615136302,0.0014,72665.0,72647.0,0.06882312]
[1773615136505,0.0014,72664.0,72647.0,0.06882312]
[1773615136862,0.06880702,72667.0,72647.0,0.06882312]
[1773615137090,0.0014,72666.0,72647.0,0.06882312]
[1773615137912,0.0014,72666.0,72650.0,0.17061664]
[1773615138094,0.0016,72666.0,72650.0,0.17061664]
[1773615138612,0.0016,72666.0,72647.0,0.06882312]
[1773615139046,0.0002,72666.0,72647.0,0.06882312]
[1773615139169,0.12223663,72691.0,72652.0,0.02557724]
[1773615139510,0.12223663,72677.0,72652.0,0.02568363]
[1773615139714,0.12223663,72677.0,72652.0,0.00010639]
[1773615139910,0.06879681,72678.0,72653.0,0.410979]
[1773615140509,0.06879639,72679.0,72660.0,0.17061664]
[1773615141112,0.06879639,72679.0,72661.0,0.0688127]
[1773615141316,0.06879639,72679.0,72662.0,0.0014]
[1773615142478,0.0014,72678.0,72662.0,0.0014]
[1773615143017,0.12892947,72676.0,72659.0,0.06881391]
[1773615143450,0.06879755,72678.0,72660.0,0.17061664]
[1773615143687,0.0687966,72679.0,72659.0,0.06881391]
[1773615143846,0.06884176,72684.0,72660.0,0.17061664]
[1773615144455,5e-05,72684.0,72660.0,0.17061664]
[1773615144659,0.06884112,72684.0,72661.0,0.04935119]
[1773615144861,0.07024112,72684.0,72662.0,0.0014]
[1773615145486,0.00145,72684.0,72663.0,0.06881081]
[1773615146100,5e-05,72684.0,72663.0,0.06881081]
[1773615146301,0.00145,72684.0,72664.0,0.0014]
[1773615146512,0.07024118,72684.0,72664.0,0.0014]
[1773615146670,5e-05,72684.0,72670.0,0.17061664]
[1773615146874,5e-05,72684.0,72671.0,0.0014]
[1773615147423,0.06884125,72684.0,72671.0,0.0014]
[1773615147625,0.13037947,72684.0,72672.0,0.06880228]
[1773615147802,0.0002,72676.0,72672.0,0.06880228]
[1773615148189,0.0014,72683.0,72672.0,0.06880228]
[1773615148409,0.0014,72683.0,72668.0,0.06880556]
[1773615148609,0.12892947,72682.0,72655.0,0.06886814]
[1773615149475,0.12892947,72679.0,72655.0,0.06886814]
[1773615149921,0.12892947,72679.0,72655.0,0.06986814]
[1773615150122,0.12892947,72679.0,72652.0,0.00010639]
[1773615150324,0.12892947,72679.0,72640.0,5e-05]
[1773615150524,0.12903588,72679.0,72640.0,0.06888247]
[1773615150777,0.0014,72678.0,72640.0,0.06888247]
[1773615150959,0.12892947,72677.0,72640.0,0.23949911]
[1773615151157,0.12892947,72678.0,72640.0,0.23949911]
[1773615151359,0.12892947,72675.0,72640.0,0.23949911]
[1773615151556,0.12892947,72673.0,72640.0,0.06883247]
[1773615152107,0.12892947,72673.0,72640.0,0.06983247]
[1773615152303,0.12892947,72668.0,72640.0,0.06983247]
[1773615152560,0.12892947,72666.0,72640.0,0.06883247]
[1773615152751,0.12892947,72666.0,72640.0,0.07083247]
[1773615152912,0.12892947,72666.0,72640.0,0.06983247]
[1773615153079,0.12892947,72666.0,72641.0,0.0014]
[1773615153285,0.12892947,72666.0,72640.0,0.07083247]
[1773615153488,0.12892947,72664.0,72642.0,0.0688307]
[1773615153692,0.0014,72664.0,72642.0,0.0688307]
[1773615154289,0.12917947,72684.0,72651.0,0.04869557]
[1773615154542,0.0014,72683.0,72660.0,0.17061664]
[1773615154765,0.07019225,72683.0,72661.0,0.0014]
[1773615155053,0.00025,72684.0,72661.0,0.0014]
[1773615155411,0.0687781,72698.0,72669.0,0.17061664]
[1773615155660,0.0687781,72698.0,72670.0,0.06880418]
[1773615156151,0.0002,72686.0,72671.0,0.0014]
[1773615156779,0.14045623,72700.0,72684.0,0.17061664]
[1773615157076,0.14045623,72700.0,72670.0,0.06880418]
[1773615157077,0.0045,72710.0,72690.0,0.17061664]
[1773615157254,0.0045,72710.0,72691.0,0.0014]
[1773615157661,0.0045,72710.0,72692.0,0.06878335]
[1773615157827,0.0045,72710.0,72692.0,0.06863623]
[1773615158028,0.06876036,72717.0,72692.0,0.06863623]
[1773615158280,0.12892947,72715.0,72693.0,0.0014]
[1773615158468,0.00010647,72715.0,72693.0,0.0014]
[1773615158669,0.05386712,72716.0,72693.0,0.0014]
[1773615158870,0.05386712,72716.0,72693.0,0.00150647]
[1773615159070,0.06901897,72717.0,72693.0,0.00150647]
[1773615159486,0.06901897,72717.0,72693.0,0.00010647]
[1773615159684,0.19769107,72715.0,72694.0,0.0014]
[1773615160058,0.0687616,72715.0,72694.0,0.0014]
[1773615160272,0.12892947,72714.0,72693.0,0.00010647]
[1773615160880,0.12892947,72714.0,72686.0,0.0014]
[1773615161054,0.12903585,72714.0,72686.0,0.0014]
[1773615161360,0.12892947,72713.0,72690.0,0.17061664]
[1773615161570,0.12892947,72713.0,72687.0,0.0014]
[1773615161571,0.06876444,72712.0,72688.0,0.06878714]
[1773615161855,0.12892947,72711.0,72688.0,0.07018714]
[1773615162450,0.12892947,72711.0,72690.0,0.17061664]
[1773615162646,0.12892947,72711.0,72688.0,0.07018714]
[1773615162647,0.19769339,72713.0,72688.0,0.06878714]
[1773615163086,0.19909339,72713.0,72689.0,0.0014]
[1773615163466,0.06876392,72713.0,72689.0,0.0014]
[1773615163868,0.0002,72711.0,72690.0,0.06878525]
[1773615164076,0.25760452,72765.0,72690.0,0.06878525]
[1773615164284,0.41072439,72810.0,72690.0,0.06878525]
[1773615164285,0.41072439,72810.0,72721.0,0.02152693]
[1773615164290,0.34378498,72800.0,72721.0,0.02152693]
[1773615164487,0.08452263,72849.0,72721.0,0.02152693]
[1773615164488,0.13037899,72853.0,72820.0,0.17061664]
[1773615164690,0.11195279,72854.0,72828.0,0.26646544]
[1773615164691,1.25500234,72850.0,72828.0,0.26646544]
[1773615164890,0.0014,72852.0,72829.0,0.13330649]
[1773615165090,0.00140001,72860.0,72830.0,0.09898609]
[1773615165455,0.06859828,72889.0,72829.0,0.0014]
[1773615165456,0.0014,72877.0,72838.0,2.099657]
[1773615165600,0.0014,72877.0,72828.0,0.00010641]
[1773615165601,0.0014,72879.0,72841.0,0.11482179]
[1773615165849,0.05866434,72888.0,72842.0,0.12480244]
[1773615166018,0.84732797,72877.0,72845.0,0.12340244]
[1773615166217,0.84732797,72877.0,72841.0,0.18346256]
[1773615166218,0.0014,72876.0,72835.0,5e-05]
[1773615166417,0.12892947,72888.0,72836.0,0.0014]
[1773615166418,0.0014,72875.0,72836.0,0.0014]
[1773615166641,0.12892947,72888.0,72840.0,0.17061664]
[1773615166798,0.00136,72887.0,72840.0,0.17061664]
[1773615166999,0.84732797,72880.0,72831.0,0.06865114]
[1773615167201,0.00136,72887.0,72841.0,0.322157]
[1773615167402,0.12892947,72886.0,72842.0,0.00144]
[1773615167603,0.12892947,72886.0,72831.0,0.19205358]
[1773615167847,0.12892947,72886.0,72840.0,0.001]
[1773615168048,0.84732797,72883.0,72841.0,0.06864266]
[1773615168206,0.06996122,72885.0,72839.0,0.06864266]
[1773615168395,0.17061664,72880.0,72840.0,0.00136]
[1773615168594,0.17061664,72880.0,72841.0,0.0014]
[1773615168799,0.17061664,72880.0,72842.0,0.0014]
[1773615169005,0.84732797,72876.0,72842.0,0.0014]
[1773615169243,0.0014,72875.0,72842.0,0.0014]
[1773615169652,0.17061664,72860.0,72835.0,5e-05]
[1773615169854,0.0014,72859.0,72835.0,5e-05]
[1773615170032,0.07002664,72858.0,72831.0,0.0014]
[1773615170234,0.18196924,72869.0,72831.0,0.0014]
[1773615170434,0.06861722,72868.0,72831.0,0.0014]
[1773615170715,0.12892947,72884.0,72827.0,0.18121976]
[1773615170716,0.05,72900.0,72852.0,0.11482179]
[1773615171027,0.00012,72916.0,72832.0,0.88787442]
[1773615171028,0.00785692,73000.0,72890.0,3.75107604]
[1773615171231,0.0024,73035.0,72974.0,0.20514616]
[1773615171437,0.15115215,73064.0,72948.0,5e-05]
[1773615171438,0.11336411,73073.0,73035.0,0.00159343]
[1773615171641,0.00035413,73073.0,73055.0,0.240672]
[1773615171841,0.35945517,73072.0,73036.0,0.21327863]
[1773615171960,0.35945517,73072.0,73035.0,0.00159343]
[1773615171961,0.06842659,73071.0,73035.0,0.00159343]
[1773615172161,0.15625087,73069.0,73018.0,0.18136]
[1773615172365,0.15625087,73069.0,73013.0,0.0024]
[1773615172366,0.14784346,73066.0,73013.0,0.0024]
[1773615172567,0.14784346,73066.0,73030.0,5e-05]
[1773615172568,0.16942915,73050.0,73030.0,5e-05]
[1773615172798,0.15625087,73065.0,73020.0,5e-05]
[1773615172799,5e-05,73021.0,73020.0,5e-05]
[1773615173015,0.35945517,73064.0,73037.0,0.09293182]
[1773615173227,0.19489,73078.0,73025.0,5e-05]
[1773615173478,0.42787427,73079.0,73026.0,0.00136]
[1773615173686,0.4282284,73079.0,73027.0,2.030195]
[1773615173897,0.4282284,73079.0,73028.0,0.00132]
[1773615173898,5e-05,73047.0,73028.0,0.00132]
[1773615174170,5e-05,73047.0,73029.0,0.06846595]
[1773615174372,5e-05,73053.0,73030.0,0.00132]
[1773615174530,0.35945517,73052.0,73031.0,0.00132]
[1773615174738,0.35945517,73052.0,73020.0,5e-05]
[1773615174935,0.35945517,73052.0,73028.0,0.001]
[1773615175456,0.35945517,73052.0,73025.0,5e-05]
[1773615175658,0.35945517,73052.0,73026.0,0.00136]
[1773615176214,0.35945517,73052.0,73026.0,0.06982869]
[1773615176416,5e-05,73053.0,73026.0,0.06982869]
[1773615176616,0.35950517,73053.0,73026.0,0.06846869]
[1773615176816,0.05920852,73052.0,73027.0,0.00136]
[1773615177040,0.05920852,73052.0,73015.0,5e-05]
[1773615177041,0.41850712,73052.0,73015.0,5e-05]
[1773615177206,0.13501609,73050.0,73015.0,5e-05]
[1773615177403,0.00136,73051.0,73015.0,5e-05]
[1773615177689,0.00136,73051.0,73014.0,0.00136]
[1773615177838,0.15756074,73051.0,73014.0,0.00136]
[1773615178046,0.06844626,73050.0,73015.0,0.06847907]
[1773615178269,0.13501609,73025.0,72980.0,5e-05]
[1773615178504,0.08725442,73024.0,72994.0,0.06849878]
[1773615178826,0.85056327,73014.0,72997.0,0.00136]
[1773615178950,0.0014,73013.0,72993.0,0.00838951]
[1773615179149,0.3592986,73024.0,72993.0,0.00838951]
[1773615179150,0.0014,73012.0,72993.0,0.00838951]
[1773615179360,0.00010608,73012.0,72994.0,0.06849878]
[1773615179638,0.16200878,73039.0,72994.0,0.06849878]
[1773615179914,0.3592986,73038.0,72994.0,0.06849878]
[1773615180118,0.15620074,73036.0,72993.0,0.00838951]
[1773615180335,0.16200878,73019.0,72982.0,0.0014]
[1773615180531,0.0014,73018.0,72982.0,0.0014]
[1773615180764,0.15620074,73017.0,72961.0,0.08044224]
[1773615181056,0.0014,73016.0,72963.0,0.711299]
[1773615181256,0.0014,73016.0,72965.0,1.609249]
[1773615181458,0.3592986,73015.0,72968.0,0.17101508]
[1773615181675,0.3592986,73023.0,72974.0,0.17101508]
[1773615181808,0.00025,73024.0,72966.0,0.0384]
[1773615181809,0.85056327,73021.0,72982.0,0.17101508]
[1773615182010,0.3593486,73023.0,72985.0,0.06850722]
[1773615182214,0.3593486,73023.0,72989.0,0.194167]
[1773615182688,0.3593486,73023.0,72990.0,0.0014]
[1773615183685,0.16200878,73019.0,72974.0,0.06887217]
[1773615183818,0.16200878,73019.0,72975.0,0.0014]
[1773615184022,0.0684772,73017.0,72990.0,0.001]
[1773615184365,0.0684772,73017.0,72988.0,0.0014]
[1773615184593,0.0684772,73017.0,72989.0,0.0014]
[1773615184801,0.0684772,73017.0,72989.0,0.00136]
[1773615185118,0.0684772,73017.0,72957.0,0.06853259]
[1773615185119,0.0684772,73017.0,72965.0,5e-05]
[1773615185332,0.15620074,73009.0,72965.0,5e-05]
[1773615185534,0.15620074,73007.0,72956.0,0.06985445]
[1773615185771,0.16200878,72989.0,72956.0,0.00132]
[1773615185973,0.00144,72988.0,72952.0,0.00132]
[1773615186173,0.85056327,72971.0,72950.0,5e-05]
[1773615186373,0.85056327,72971.0,72945.0,5e-05]
[1773615186374,0.00144,72970.0,72945.0,5e-05]
[1773615186592,0.00144,72969.0,72931.0,0.06855795]
[1773615186891,0.15620074,72979.0,72931.0,0.06855795]
[1773615187117,0.3591886,72978.0,72931.0,0.06855795]
[1773615187294,0.0003537,72978.0,72938.0,0.142799]
[1773615187522,0.85056327,72976.0,72939.0,0.00136]
[1773615187639,0.00144,72977.0,72940.0,0.389086]
[1773615187640,0.3606286,72977.0,72940.0,0.389086]
[1773615188056,0.3606286,72977.0,72941.0,0.06854855]
[1773615188340,0.06995508,72977.0,72942.0,0.1776]
[1773615188615,0.85056327,72970.0,72942.0,0.1776]
[1773615188815,0.3591886,72976.0,72943.0,0.00136]
[1773615189013,0.85056327,72971.0,72944.0,0.00136]
[1773615189235,0.3591886,72976.0,72945.0,0.12684574]
[1773615189446,0.3591886,72976.0,72938.0,0.06854855]
[1773615189447,0.06995484,72977.0,72940.0,0.00136]
[1773615189664,0.06995484,72977.0,72933.0,0.10084296]
[1773615189665,0.15620074,72969.0,72935.0,0.06860336]
[1773615190087,0.3591886,72968.0,72935.0,5e-05]
[1773615190283,0.3591886,72968.0,72928.0,0.0014]
[1773615190284,0.2247258,72966.0,72928.0,0.0014]
[1773615190440,0.85056327,72949.0,72928.0,0.0014]
[1773615190801,0.2247258,72966.0,72920.0,5e-05]
[1773615190802,0.00148,72948.0,72920.0,5e-05]
[1773615190962,0.00148,72947.0,72920.0,5e-05]
[1773615191566,0.3591886,72946.0,72920.0,0.00015608]
[1773615191920,0.3591886,72946.0,72920.0,0.00010608]
[1773615192335,0.06854479,72945.0,72916.0,0.00011]
[1773615192554,0.85056327,72938.0,72916.0,0.06868118]
[1773615192759,0.00158605,72945.0,72917.0,0.06857111]
[1773615192931,0.00158605,72945.0,72917.0,0.06357111]
[1773615193165,0.00158605,72945.0,72919.0,0.18787477]
[1773615193309,0.00148,72944.0,72921.0,0.18787477]
[1773615193507,0.85056327,72936.0,72921.0,0.00010605]
[1773615193714,0.00148,72937.0,72921.0,0.00010605]
[1773615193923,0.00148,72936.0,72916.0,0.0686819]
[1773615194129,0.23054528,72954.0,72928.0,0.18787477]
[1773615194130,0.06854291,72947.0,72928.0,0.18787477]
[1773615194328,0.3606686,72946.0,72921.0,0.06856658]
[1773615194530,0.66258232,72931.0,72922.0,0.00144]
[1773615194759,0.36077482,72946.0,72924.0,0.15568479]
[1773615194959,0.66258232,72936.0,72922.0,0.15568479]
[1773615195163,0.00148,72937.0,72916.0,0.00011]
[1773615195506,0.00148,72936.0,72916.0,0.00011]